{"text_format":"1","workbook":"xlsx","n_sheets":2,"sheets":[">25k report","Macro1"],"not_rendered":{"charts":0,"images":0,"macros":0,"external_links":0,"defined_names":35,"comments":0,"pivot_tables":0},"unopened":[],"bounds":{"document_bytes":16777216,"sheet_cells":100000,"rows_first":2000,"rows_last":500,"rows_between":2000,"halvings":0,"cell_chars":16384,"cell_head_chars":4096},"cells_cut":0,"cells_raw":0,"read":"whole","date_system":"1900"}

{"sheet":">25k report","index":0,"n_rows":182,"n_cols":9,"rows_kept":182,"cut":false,"hidden":false,"merged":[]}
["Ledger Id:2030","GL Journal Period Name:<All>"]
[]
["Department Family","Entity","Invoice Date","Expense Type","Expense Area","Supplier Name","Transaction Number","Amount","Description"]
["Department of Health","CWPFT","2018-09-10","CYCLE TO WORK SCHEME","TRUST WIDE","HALFORDS LTD",5143532,29883.33,"CWPP312 55 x Letter of Collection under Cycle to Work Scheme. September - August 2018/19."]
["Department of Health","CWPFT","2018-09-23","STAFF","CORPORATE SUPPORT SERVICE","ST HELENS AND KNOWSLEY HOSPITALS NHS TRUST",5144496,190000,"DRA-OCT.18-POST GRADUATE LEVY - MERSEY"]
["Department of Health","CWPFT","2018-10-01","HEALTHCARE FROM INDEPENDENT SECTOR","NEIGHBOURHOOD","INSIGHT HEALTHCARE LTD",5144594,78856.33,"Work carried out as sub-contractor for the NHS Sefton IAPT service.  Monthly charge based on annual value of £946,276.00, April 2018 to March 2019"]
["Department of Health","CWPFT","2018-10-01","EXTERNAL CONTRACTS : DOMESTICS","CORPORATE SUPPORT SERVICE","WEST CHESHIRE CLEANING SERVICES",5144635,3252.6,"PROPERTY: GORDON HOUSE. CONTRACT PERIOD: 01/04/2018-31/03/2019"]
["Department of Health","CWPFT",null,"EXTERNAL CONTRACTS : DOMESTICS","CORPORATE SUPPORT SERVICE","WEST CHESHIRE CLEANING SERVICES",null,1950,"PROPERTY: MARINE LAKE MEDICAL CENTRE, WEST KIRBY. CONTRACT PERIOD: 01/04/2018-31/03/2019"]
["Department of Health","CWPFT",null,"EXTERNAL CONTRACTS : DOMESTICS","CORPORATE SUPPORT SERVICE","WEST CHESHIRE CLEANING SERVICES",null,1673.75,"PROPERTY: MARSDEN HOUSE. CONTRACT PERIOD: 01/04/2018-31/03/2019"]
["Department of Health","CWPFT",null,"EXTERNAL CONTRACTS : DOMESTICS","CORPORATE SUPPORT SERVICE","WEST CHESHIRE CLEANING SERVICES",null,2021.24,"PROPERTY: PORTSIDE HUB. CONTRACT PERIOD: 01/04/2018-31/03/2019"]
["Department of Health","CWPFT",null,"EXTERNAL CONTRACTS : DOMESTICS","CORPORATE SUPPORT SERVICE","WEST CHESHIRE CLEANING SERVICES",null,13268.84,"PROPERTY: PRINCEWAY. CONTRACT PERIOD: 01/04/2018-31/03/2019"]
["Department of Health","CWPFT",null,"EXTERNAL CONTRACTS : DOMESTICS","CORPORATE SUPPORT SERVICE","WEST CHESHIRE CLEANING SERVICES",null,3278.6,"PROPERTY: ST ANNES STREET. CONTRACT PERIOD: 01/04/2018-31/03/2019"]
["Department of Health","CWPFT",null,"EXTERNAL CONTRACTS : DOMESTICS","CORPORATE SUPPORT SERVICE","WEST CHESHIRE CLEANING SERVICES",null,3282.5,"PROPERTY: STELLA NOVA. CONTRACT PERIOD: 01/04/2018-31/03/2019"]
["Department of Health","CWPFT",null,"EXTERNAL CONTRACTS : DOMESTICS","CORPORATE SUPPORT SERVICE","WEST CHESHIRE CLEANING SERVICES",null,2480.14,"PROPERTY: SYCAMORE HOUSE. CONTRACT PERIOD: 01/04/2018-31/03/2019"]
["Department of Health","CWPFT",null,"EXTERNAL CONTRACTS : DOMESTICS","CORPORATE SUPPORT SERVICE","WEST CHESHIRE CLEANING SERVICES",null,2640.3,"PROPERTY: THE OAKS OFFICE PARK. CONTRACT PERIOD: 01/04/2018-31/03/2019"]
["Department of Health","CWPFT",null,"EXTERNAL CONTRACTS : DOMESTICS","CORPORATE SUPPORT SERVICE","WEST CHESHIRE CLEANING SERVICES",null,8153.21,"PROPERTY: VALE HOUSE. CONTRACT PERIOD: 01/04/2018-31/03/2019"]
["Department of Health","CWPFT",null,"EXTERNAL CONTRACTS : DOMESTICS","CORPORATE SUPPORT SERVICE","WEST CHESHIRE CLEANING SERVICES",null,863.59,"PROPERTY: CHESTER EATING DISORDER. CONTRACT PERIOD: 01/04/2018-31/03/2019"]
["Department of Health","CWPFT",null,"EXTERNAL CONTRACTS : DOMESTICS","NEIGHBOURHOOD","WEST CHESHIRE CLEANING SERVICES",null,3422.25,"PROPERTY: WESTMINSTER SURGERY. CONTRACT PERIOD: 01/04/2018-31/03/2019"]
["Department of Health","CWPFT",null,"EXTERNAL CONTRACTS : DOMESTICS","NEIGHBOURHOOD","WEST CHESHIRE CLEANING SERVICES",null,2021.24,"PROPERTY: WILLASTON SURGERY. CONTRACT PERIOD: 01/04/2018-31/03/2019"]
["Department of Health","CWPFT","2018-10-02","HEALTHCARE FROM FOUNDATION TRUSTS","SPECIALIST MENTAL HEALTH","NORTH WEST BOROUGHS HEALTHCARE NHS FOUNDATION TRUST",5144719,43667,"DRA-OCT.18-PERINATAL SERVICE"]
["Department of Health","CWPFT","2018-10-02","HEALTHCARE FROM NHS TRUSTS","SPECIALIST MENTAL HEALTH","EAST CHESHIRE NHS TRUST",5144721,21442.09,"DRA-2018/19-SLA MHT / OVERHEADS"]
["Department of Health","CWPFT",null,"NON HEALTHCARE SERVICES FROM NHS TRUSTS","SPECIALIST MENTAL HEALTH","EAST CHESHIRE NHS TRUST",null,441.91,"DRA-2018/19-SLA MHT / OVERHEADS"]
["Department of Health","CWPFT",null,"NON HEALTHCARE SERVICES FROM NHS TRUSTS","CORPORATE SUPPORT SERVICE","EAST CHESHIRE NHS TRUST",null,11068,"DRA-2018/19-SLA MHT / OVERHEADS"]
["Department of Health","CWPFT","2018-10-02","NON HEALTHCARE SERVICES FROM NHS TRUSTS","CORPORATE SUPPORT SERVICE","EAST CHESHIRE NHS TRUST",5144722,31698,"DRA-2018/19-M6-CAPITAL CHARGES-RENT"]
["Department of Health","CWPFT","2018-09-30","DRESSINGS","JOINT THERAPIES","NWOS",5144726,39.730000000000004,"DRA-SEP.18-CONSOLIDATED INVOICE"]
["Department of Health","CWPFT",null,"DRESSINGS","NEIGHBOURHOOD","NWOS",null,57573.67,"DRA-SEP.18-CONSOLIDATED INVOICE"]
["Department of Health","CWPFT","2018-10-03","EXTERNAL CONTRACTS - FINANCIAL SERVICES","CORPORATE SUPPORT SERVICE","COUNTESS OF CHESTER HOSPITALS NHS FOUNDATION TRUST",5144951,63915,"MAN-2018/19-Q3-PAYROLL SERVICES"]
["Department of Health","CWPFT","2018-09-27","HEALTHCARE FROM FOUNDATION TRUSTS","SPECIALIST MENTAL HEALTH","MERSEY CARE NHS TRUST",5144979,105555.56,"MAN-JUN-SEP.18-PERINATAL MENTAL HEALTH PROGRAMME-WAVE 2"]
["Department of Health","CWPFT","2018-09-10","LEGAL FEES","CORPORATE SUPPORT SERVICE","HILL DICKINSON",5145057,32045.4,"MAN JULY 18 PROVISION FORLEGALSERVICES 01.0718 31.07.18"]
["Department of Health","CWPFT","2018-09-30","CHILDCARE VOUCHERS","TRUST WIDE","FIDELITI LTD",5145122,32734.07,"DRA-SEP.18-CHILDCARE VOUCHERS"]
["Department of Health","CWPFT",null,"CHILDCARE VOUCHERS FEE","CORPORATE SUPPORT SERVICE","FIDELITI LTD",null,982.02,"DRA-SEP.18-CHILDCARE VOUCHERS"]
["Department of Health","CWPFT","2018-10-07","COMPUTER NETWORK COSTS","CORPORATE SUPPORT SERVICE","BT COMMUNICATIONS PLC",5145353,24840.720000000001,"BT Charges - October 2018 | CSBT93401 | 09/07/2018 to 30/09/2018"]
["Department of Health","CWPFT",null,"COMPUTER NETWORK COSTS","CORPORATE SUPPORT SERVICE","BT COMMUNICATIONS PLC",null,3375.02,"BT Charges - October 2018 | LDHLSE-016OB | 01/09/2018 to 30/09/2018"]
["Department of Health","CWPFT",null,"TELEPHONE RENTAL AND CALL CHARGES","OPERATIONAL MANAGEMENT","BT COMMUNICATIONS PLC",null,238.34,"BT Charges - October 2018 | 01513474200 | 01/10/2018 to 31/10/2018"]
["Department of Health","CWPFT",null,"TELEPHONE RENTAL AND CALL CHARGES","OPERATIONAL MANAGEMENT","BT COMMUNICATIONS PLC",null,33.96,"BT Charges - October 2018 | 01513480728 | 01/10/2018 to 31/10/2018"]
["Department of Health","CWPFT",null,"TELEPHONE RENTAL AND CALL CHARGES","OPERATIONAL MANAGEMENT","BT COMMUNICATIONS PLC",null,31.080000000000002,"BT Charges - October 2018 | 01513530062 | 01/10/2018 to 31/10/2018"]
["Department of Health","CWPFT",null,"TELEPHONE RENTAL AND CALL CHARGES","OPERATIONAL MANAGEMENT","BT COMMUNICATIONS PLC",null,31.080000000000002,"BT Charges - October 2018 | 01513530618 | 01/10/2018 to 31/10/2018"]
["Department of Health","CWPFT",null,"TELEPHONE RENTAL AND CALL CHARGES","OPERATIONAL MANAGEMENT","BT COMMUNICATIONS PLC",null,31.080000000000002,"BT Charges - October 2018 | 01513530781 | 01/10/2018 to 31/10/2018"]
["Department of Health","CWPFT",null,"TELEPHONE RENTAL AND CALL CHARGES","OPERATIONAL MANAGEMENT","BT COMMUNICATIONS PLC",null,31.080000000000002,"BT Charges - October 2018 | 01513531016 | 01/10/2018 to 31/10/2018"]
["Department of Health","CWPFT",null,"TELEPHONE RENTAL AND CALL CHARGES","OPERATIONAL MANAGEMENT","BT COMMUNICATIONS PLC",null,31.95,"BT Charges - October 2018 | 01513531873 | 01/10/2018 to 31/10/2018"]
["Department of Health","CWPFT",null,"TELEPHONE RENTAL AND CALL CHARGES","OPERATIONAL MANAGEMENT","BT COMMUNICATIONS PLC",null,15.450000000000001,"BT Charges - October 2018 | 01513556818 | 01/10/2018 to 31/10/2018"]
["Department of Health","CWPFT",null,"TELEPHONE RENTAL AND CALL CHARGES","OPERATIONAL MANAGEMENT","BT COMMUNICATIONS PLC",null,16.88,"BT Charges - October 2018 | 01513562610 | 01/10/2018 to 31/10/2018"]
["Department of Health","CWPFT",null,"TELEPHONE RENTAL AND CALL CHARGES","OPERATIONAL MANAGEMENT","BT COMMUNICATIONS PLC",null,31.080000000000002,"BT Charges - October 2018 | 01513564991 | 01/10/2018 to 31/10/2018"]
["Department of Health","CWPFT",null,"TELEPHONE RENTAL AND CALL CHARGES","OPERATIONAL MANAGEMENT","BT COMMUNICATIONS PLC",null,36.369999999999997,"BT Charges - October 2018 | 01513565068 | 01/10/2018 to 31/10/2018"]
["Department of Health","CWPFT",null,"TELEPHONE RENTAL AND CALL CHARGES","OPERATIONAL MANAGEMENT","BT COMMUNICATIONS PLC",null,1753.79,"BT Charges - October 2018 | 01625505600 | 01/10/2018 to 31/10/2018"]
["Department of Health","CWPFT",null,"TELEPHONE RENTAL AND CALL CHARGES","OPERATIONAL MANAGEMENT","BT COMMUNICATIONS PLC",null,15.73,"BT Charges - October 2018 | 01625618246 | 01/10/2018 to 31/10/2018"]
["Department of Health","CWPFT",null,"TELEPHONE RENTAL AND CALL CHARGES","OPERATIONAL MANAGEMENT","BT COMMUNICATIONS PLC",null,15.16,"BT Charges - October 2018 | 01625618665 | 01/10/2018 to 31/10/2018"]
["Department of Health","CWPFT",null,"TELEPHONE RENTAL AND CALL CHARGES","OPERATIONAL MANAGEMENT","BT COMMUNICATIONS PLC",null,15.4,"BT Charges - October 2018 | 01829260249 | 01/10/2018 to 31/10/2018"]
["Department of Health","CWPFT",null,"TELEPHONE RENTAL AND CALL CHARGES","OPERATIONAL MANAGEMENT","BT COMMUNICATIONS PLC",null,39.92,"BT Charges - October 2018 | 01829261640 | 01/10/2018 to 31/10/2018"]
["Department of Health","CWPFT",null,"TELEPHONE RENTAL AND CALL CHARGES","OPERATIONAL MANAGEMENT","BT COMMUNICATIONS PLC",null,29.52,"BT Charges - October 2018 | 01829261864 | 01/10/2018 to 31/10/2018"]
["Department of Health","CWPFT",null,"TELEPHONE RENTAL AND CALL CHARGES","OPERATIONAL MANAGEMENT","BT COMMUNICATIONS PLC",null,27.55,"BT Charges - October 2018 | 01829262583 | 01/10/2018 to 31/10/2018"]
["Department of Health","CWPFT",null,"TELEPHONE RENTAL AND CALL CHARGES","OPERATIONAL MANAGEMENT","BT COMMUNICATIONS PLC",null,33.01,"BT Charges - October 2018 | 01244403950 | 01/10/2018 to 31/10/2018"]
["Department of Health","CWPFT",null,"TELEPHONE RENTAL AND CALL CHARGES","OPERATIONAL MANAGEMENT","BT COMMUNICATIONS PLC",null,31.45,"BT Charges - October 2018 | 01244679812 | 01/10/2018 to 31/10/2018"]
["Department of Health","CWPFT",null,"TELEPHONE RENTAL AND CALL CHARGES","OPERATIONAL MANAGEMENT","BT COMMUNICATIONS PLC",null,31.080000000000002,"BT Charges - October 2018 | 01244680609 | 01/10/2018 to 31/10/2018"]
["Department of Health","CWPFT",null,"TELEPHONE RENTAL AND CALL CHARGES","OPERATIONAL MANAGEMENT","BT COMMUNICATIONS PLC",null,36,"BT Charges - October 2018 | 01244680975 | 01/10/2018 to 31/10/2018"]
["Department of Health","CWPFT",null,"TELEPHONE RENTAL AND CALL CHARGES","OPERATIONAL MANAGEMENT","BT COMMUNICATIONS PLC",null,75.3,"BT Charges - October 2018 | 01244682991 | 01/10/2018 to 31/10/2018"]
["Department of Health","CWPFT",null,"TELEPHONE RENTAL AND CALL CHARGES","OPERATIONAL MANAGEMENT","BT COMMUNICATIONS PLC",null,16.850000000000001,"BT Charges - October 2018 | 01270255042 | 01/10/2018 to 31/10/2018"]
["Department of Health","CWPFT",null,"TELEPHONE RENTAL AND CALL CHARGES","OPERATIONAL MANAGEMENT","BT COMMUNICATIONS PLC",null,15.16,"BT Charges - October 2018 | 01270581000 | 01/10/2018 to 31/10/2018"]
["Department of Health","CWPFT",null,"TELEPHONE RENTAL AND CALL CHARGES","OPERATIONAL MANAGEMENT","BT COMMUNICATIONS PLC",null,18.32,"BT Charges - October 2018 | 01270582020 | 01/10/2018 to 31/10/2018"]
["Department of Health","CWPFT",null,"TELEPHONE RENTAL AND CALL CHARGES","OPERATIONAL MANAGEMENT","BT COMMUNICATIONS PLC",null,1244.5899999999999,"BT Charges - October 2018 | 01270655200 | 01/10/2018 to 31/10/2018"]
["Department of Health","CWPFT",null,"TELEPHONE RENTAL AND CALL CHARGES","OPERATIONAL MANAGEMENT","BT COMMUNICATIONS PLC",null,29.52,"BT Charges - October 2018 | 01513363995 | 01/10/2018 to 31/10/2018"]
["Department of Health","CWPFT",null,"TELEPHONE RENTAL AND CALL CHARGES","OPERATIONAL MANAGEMENT","BT COMMUNICATIONS PLC",null,31.080000000000002,"BT Charges - October 2018 | 01513366841 | 01/10/2018 to 31/10/2018"]
["Department of Health","CWPFT",null,"TELEPHONE RENTAL AND CALL CHARGES","OPERATIONAL MANAGEMENT","BT COMMUNICATIONS PLC",null,32.43,"BT Charges - October 2018 | 01513391857 | 01/10/2018 to 31/10/2018"]
["Department of Health","CWPFT",null,"TELEPHONE RENTAL AND CALL CHARGES","OPERATIONAL MANAGEMENT","BT COMMUNICATIONS PLC",null,93.95,"BT Charges - October 2018 | 01513392183 | 01/10/2018 to 31/10/2018"]
["Department of Health","CWPFT",null,"TELEPHONE RENTAL AND CALL CHARGES","OPERATIONAL MANAGEMENT","BT COMMUNICATIONS PLC",null,127.8,"BT Charges - October 2018 | 01513392208 | 01/10/2018 to 31/10/2018"]
["Department of Health","CWPFT",null,"TELEPHONE RENTAL AND CALL CHARGES","OPERATIONAL MANAGEMENT","BT COMMUNICATIONS PLC",null,69.570000000000007,"BT Charges - October 2018 | 01513394781 | 01/10/2018 to 31/10/2018"]
["Department of Health","CWPFT",null,"TELEPHONE RENTAL AND CALL CHARGES","OPERATIONAL MANAGEMENT","BT COMMUNICATIONS PLC",null,31.48,"BT Charges - October 2018 | 01513396119 | 01/10/2018 to 31/10/2018"]
["Department of Health","CWPFT",null,"TELEPHONE RENTAL AND CALL CHARGES","OPERATIONAL MANAGEMENT","BT COMMUNICATIONS PLC",null,18.650000000000002,"BT Charges - October 2018 | 01513398757 | 01/10/2018 to 31/10/2018"]
["Department of Health","CWPFT",null,"TELEPHONE RENTAL AND CALL CHARGES","OPERATIONAL MANAGEMENT","BT COMMUNICATIONS PLC",null,31.1,"BT Charges - October 2018 | 01513471885 | 01/10/2018 to 31/10/2018"]
["Department of Health","CWPFT",null,"TELEPHONE RENTAL AND CALL CHARGES","SPECIALIST MENTAL HEALTH","BT COMMUNICATIONS PLC",null,15.16,"BT Charges - October 2018 | 01516535398 | 01/10/2018 to 31/10/2018"]
["Department of Health","CWPFT",null,"TELEPHONE RENTAL AND CALL CHARGES","SPECIALIST MENTAL HEALTH","BT COMMUNICATIONS PLC",null,244.64000000000001,"BT Charges - October 2018 | 01516537655 | 01/10/2018 to 31/10/2018"]
["Department of Health","CWPFT",null,"TELEPHONE RENTAL AND CALL CHARGES","SPECIALIST MENTAL HEALTH","BT COMMUNICATIONS PLC",null,20.59,"BT Charges - October 2018 | 01606552023 | 01/10/2018 to 31/10/2018"]
["Department of Health","CWPFT",null,"TELEPHONE RENTAL AND CALL CHARGES","SPECIALIST MENTAL HEALTH","BT COMMUNICATIONS PLC",null,1314.57,"BT Charges - October 2018 | 01606555100 | 01/10/2018 to 31/10/2018"]
["Department of Health","CWPFT",null,"TELEPHONE RENTAL AND CALL CHARGES","SPECIALIST MENTAL HEALTH","BT COMMUNICATIONS PLC",null,15.16,"BT Charges - October 2018 | 01625860582 | 01/10/2018 to 31/10/2018"]
["Department of Health","CWPFT",null,"TELEPHONE RENTAL AND CALL CHARGES","SPECIALIST MENTAL HEALTH","BT COMMUNICATIONS PLC",null,15.16,"BT Charges - October 2018 | 01625860787 | 01/10/2018 to 31/10/2018"]
["Department of Health","CWPFT",null,"TELEPHONE RENTAL AND CALL CHARGES","SPECIALIST MENTAL HEALTH","BT COMMUNICATIONS PLC",null,15.39,"BT Charges - October 2018 | 01625860969 | 01/10/2018 to 31/10/2018"]
["Department of Health","CWPFT",null,"TELEPHONE RENTAL AND CALL CHARGES","SPECIALIST MENTAL HEALTH","BT COMMUNICATIONS PLC",null,15.16,"BT Charges - October 2018 | 01625860970 | 01/10/2018 to 31/10/2018"]
["Department of Health","CWPFT",null,"TELEPHONE RENTAL AND CALL CHARGES","SPECIALIST MENTAL HEALTH","BT COMMUNICATIONS PLC",null,416.13,"BT Charges - October 2018 | 01625862400 | 01/10/2018 to 31/10/2018"]
["Department of Health","CWPFT",null,"TELEPHONE RENTAL AND CALL CHARGES","SPECIALIST MENTAL HEALTH","BT COMMUNICATIONS PLC",null,43.410000000000004,"BT Charges - October 2018 | 01625890052 | 01/10/2018 to 31/10/2018"]
["Department of Health","CWPFT",null,"TELEPHONE RENTAL AND CALL CHARGES","SPECIALIST MENTAL HEALTH","BT COMMUNICATIONS PLC",null,15.18,"BT Charges - October 2018 | 01625890053 | 01/10/2018 to 31/10/2018"]
["Department of Health","CWPFT",null,"TELEPHONE RENTAL AND CALL CHARGES","SPECIALIST MENTAL HEALTH","BT COMMUNICATIONS PLC",null,15.27,"BT Charges - October 2018 | 01625890054 | 01/10/2018 to 31/10/2018"]
["Department of Health","CWPFT",null,"TELEPHONE RENTAL AND CALL CHARGES","SPECIALIST MENTAL HEALTH","BT COMMUNICATIONS PLC",null,16.57,"BT Charges - October 2018 | 01925242440 | 01/10/2018 to 31/10/2018"]
["Department of Health","CWPFT",null,"TELEPHONE RENTAL AND CALL CHARGES","CHILDREN, YOUNG PEOPLE & FAMILIES","BT COMMUNICATIONS PLC",null,15.21,"BT Charges - October 2018 | 01516302492 | 01/10/2018 to 31/10/2018"]
["Department of Health","CWPFT",null,"TELEPHONE RENTAL AND CALL CHARGES","CHILDREN, YOUNG PEOPLE & FAMILIES","BT COMMUNICATIONS PLC",null,15.16,"BT Charges - October 2018 | 01516060407 | 01/10/2018 to 31/10/2018"]
["Department of Health","CWPFT",null,"TELEPHONE RENTAL AND CALL CHARGES","CHILDREN, YOUNG PEOPLE & FAMILIES","BT COMMUNICATIONS PLC",null,15.16,"BT Charges - October 2018 | 01516041087 | 01/10/2018 to 31/10/2018"]
["Department of Health","CWPFT",null,"TELEPHONE RENTAL AND CALL CHARGES","CHILDREN, YOUNG PEOPLE & FAMILIES","BT COMMUNICATIONS PLC",null,244.57,"BT Charges - October 2018 | 01270848030 | 01/10/2018 to 31/10/2018"]
["Department of Health","CWPFT",null,"TELEPHONE RENTAL AND CALL CHARGES","CHILDREN, YOUNG PEOPLE & FAMILIES","BT COMMUNICATIONS PLC",null,15.39,"BT Charges - October 2018 | 01270252398 | 01/10/2018 to 31/10/2018"]
["Department of Health","CWPFT",null,"TELEPHONE RENTAL AND CALL CHARGES","OPERATIONAL MANAGEMENT","BT COMMUNICATIONS PLC",null,15.6,"BT Charges - October 2018 | 01829730445 | 01/10/2018 to 31/10/2018"]
["Department of Health","CWPFT",null,"TELEPHONE RENTAL AND CALL CHARGES","OPERATIONAL MANAGEMENT","BT COMMUNICATIONS PLC",null,15.21,"BT Charges - October 2018 | 01829730560 | 01/10/2018 to 31/10/2018"]
["Department of Health","CWPFT",null,"TELEPHONE RENTAL AND CALL CHARGES","OPERATIONAL MANAGEMENT","BT COMMUNICATIONS PLC",null,60.120000000000005,"BT Charges - October 2018 | 01829733193 | 01/10/2018 to 31/10/2018"]
["Department of Health","CWPFT",null,"TELEPHONE RENTAL AND CALL CHARGES","OPERATIONAL MANAGEMENT","BT COMMUNICATIONS PLC",null,31.26,"BT Charges - October 2018 | 01829733448 | 01/10/2018 to 31/10/2018"]
["Department of Health","CWPFT",null,"TELEPHONE RENTAL AND CALL CHARGES","OPERATIONAL MANAGEMENT","BT COMMUNICATIONS PLC",null,26.22,"BT Charges - October 2018 | 01829733559 | 01/10/2018 to 31/10/2018"]
["Department of Health","CWPFT",null,"TELEPHONE RENTAL AND CALL CHARGES","OPERATIONAL MANAGEMENT","BT COMMUNICATIONS PLC",null,19.350000000000001,"BT Charges - October 2018 | 01829733678 | 01/10/2018 to 31/10/2018"]
["Department of Health","CWPFT",null,"TELEPHONE RENTAL AND CALL CHARGES","OPERATIONAL MANAGEMENT","BT COMMUNICATIONS PLC",null,118.42,"BT Charges - October 2018 | 01829733686 | 01/10/2018 to 31/10/2018"]
["Department of Health","CWPFT",null,"TELEPHONE RENTAL AND CALL CHARGES","OPERATIONAL MANAGEMENT","BT COMMUNICATIONS PLC",null,19.66,"BT Charges - October 2018 | 01829740082 | 01/10/2018 to 31/10/2018"]
["Department of Health","CWPFT",null,"TELEPHONE RENTAL AND CALL CHARGES","OPERATIONAL MANAGEMENT","BT COMMUNICATIONS PLC",null,15.16,"BT Charges - October 2018 | 01928735139 | 01/10/2018 to 31/10/2018"]
["Department of Health","CWPFT",null,"TELEPHONE RENTAL AND CALL CHARGES","OPERATIONAL MANAGEMENT","BT COMMUNICATIONS PLC",null,59.68,"BT Charges - October 2018 | 01948860038 | 01/10/2018 to 31/10/2018"]
["Department of Health","CWPFT",null,"TELEPHONE RENTAL AND CALL CHARGES","OPERATIONAL MANAGEMENT","BT COMMUNICATIONS PLC",null,24.400000000000002,"BT Charges - October 2018 | 01948860177 | 01/10/2018 to 31/10/2018"]
["Department of Health","CWPFT",null,"TELEPHONE RENTAL AND CALL CHARGES","OPERATIONAL MANAGEMENT","BT COMMUNICATIONS PLC",null,15.39,"BT Charges - October 2018 | 01948860723 | 01/10/2018 to 31/10/2018"]
["Department of Health","CWPFT",null,"TELEPHONE RENTAL AND CALL CHARGES","OPERATIONAL MANAGEMENT","BT COMMUNICATIONS PLC",null,33.74,"BT Charges - October 2018 | 01948861212 | 01/10/2018 to 31/10/2018"]
["Department of Health","CWPFT",null,"TELEPHONE RENTAL AND CALL CHARGES","SPECIALIST MENTAL HEALTH","BT COMMUNICATIONS PLC",null,20.080000000000002,"BT Charges - October 2018 | 01244681380 | 01/10/2018 to 31/10/2018"]
["Department of Health","CWPFT",null,"TELEPHONE RENTAL AND CALL CHARGES","SPECIALIST MENTAL HEALTH","BT COMMUNICATIONS PLC",null,213.3,"BT Charges - October 2018 | 01260292900 | 01/10/2018 to 31/10/2018"]
["Department of Health","CWPFT",null,"TELEPHONE RENTAL AND CALL CHARGES","SPECIALIST MENTAL HEALTH","BT COMMUNICATIONS PLC",null,16.260000000000002,"BT Charges - October 2018 | 01270585412 | 01/10/2018 to 31/10/2018"]
["Department of Health","CWPFT",null,"TELEPHONE RENTAL AND CALL CHARGES","SPECIALIST MENTAL HEALTH","BT COMMUNICATIONS PLC",null,17.440000000000001,"BT Charges - October 2018 | 01513572047 | 01/10/2018 to 31/10/2018"]
["Department of Health","CWPFT",null,"TELEPHONE RENTAL AND CALL CHARGES","SPECIALIST MENTAL HEALTH","BT COMMUNICATIONS PLC",null,15.16,"BT Charges - October 2018 | 01516480314 | 01/10/2018 to 31/10/2018"]
["Department of Health","CWPFT",null,"TELEPHONE RENTAL AND CALL CHARGES","SPECIALIST MENTAL HEALTH","BT COMMUNICATIONS PLC",null,15.16,"BT Charges - October 2018 | 01516481715 | 01/10/2018 to 31/10/2018"]
["Department of Health","CWPFT",null,"TELEPHONE RENTAL AND CALL CHARGES","LEARNING DISABILITIES & NEURO SERVICES","BT COMMUNICATIONS PLC",null,1.87,"BT Charges - October 2018 | 34282502 | 01/10/2018 to 31/10/2018"]
["Department of Health","CWPFT",null,"TELEPHONE RENTAL AND CALL CHARGES","LEARNING DISABILITIES & NEURO SERVICES","BT COMMUNICATIONS PLC",null,15.25,"BT Charges - October 2018 | 01606869195 | 01/10/2018 to 31/10/2018"]
["Department of Health","CWPFT",null,"TELEPHONE RENTAL AND CALL CHARGES","LEARNING DISABILITIES & NEURO SERVICES","BT COMMUNICATIONS PLC",null,15.16,"BT Charges - October 2018 | 01606550849 | 01/10/2018 to 31/10/2018"]
["Department of Health","CWPFT",null,"TELEPHONE RENTAL AND CALL CHARGES","LEARNING DISABILITIES & NEURO SERVICES","BT COMMUNICATIONS PLC",null,16,"BT Charges - October 2018 | 01516709780 | 01/10/2018 to 31/10/2018"]
["Department of Health","CWPFT",null,"TELEPHONE RENTAL AND CALL CHARGES","LEARNING DISABILITIES & NEURO SERVICES","BT COMMUNICATIONS PLC",null,28.44,"BT Charges - October 2018 | 01516520473 | 01/10/2018 to 31/10/2018"]
["Department of Health","CWPFT",null,"TELEPHONE RENTAL AND CALL CHARGES","LEARNING DISABILITIES & NEURO SERVICES","BT COMMUNICATIONS PLC",null,15.370000000000001,"BT Charges - October 2018 | 01270651717 | 01/10/2018 to 31/10/2018"]
["Department of Health","CWPFT",null,"TELEPHONE RENTAL AND CALL CHARGES","CORPORATE SUPPORT SERVICE","BT COMMUNICATIONS PLC",null,15.15,"BT Charges - October 2018 | 01244324803 | 01/10/2018 to 31/10/2018"]
["Department of Health","CWPFT",null,"TELEPHONE RENTAL AND CALL CHARGES","CORPORATE SUPPORT SERVICE","BT COMMUNICATIONS PLC",null,34.32,"BT Charges - October 2018 | 01244370816 | 01/10/2018 to 31/10/2018"]
["Department of Health","CWPFT",null,"TELEPHONE RENTAL AND CALL CHARGES","CORPORATE SUPPORT SERVICE","BT COMMUNICATIONS PLC",null,15.15,"BT Charges - October 2018 | 01244373146 | 01/10/2018 to 31/10/2018"]
["Department of Health","CWPFT",null,"TELEPHONE RENTAL AND CALL CHARGES","CORPORATE SUPPORT SERVICE","BT COMMUNICATIONS PLC",null,15.15,"BT Charges - October 2018 | 01244373230 | 01/10/2018 to 31/10/2018"]
["Department of Health","CWPFT",null,"TELEPHONE RENTAL AND CALL CHARGES","CORPORATE SUPPORT SERVICE","BT COMMUNICATIONS PLC",null,15.15,"BT Charges - October 2018 | 01244374814 | 01/10/2018 to 31/10/2018"]
["Department of Health","CWPFT",null,"TELEPHONE RENTAL AND CALL CHARGES","CORPORATE SUPPORT SERVICE","BT COMMUNICATIONS PLC",null,257.75,"BT Charges - October 2018 | 01244375653 | 01/10/2018 to 31/10/2018"]
["Department of Health","CWPFT",null,"TELEPHONE RENTAL AND CALL CHARGES","CORPORATE SUPPORT SERVICE","BT COMMUNICATIONS PLC",null,31.78,"BT Charges - October 2018 | 01244377501 | 01/10/2018 to 31/10/2018"]
["Department of Health","CWPFT",null,"TELEPHONE RENTAL AND CALL CHARGES","CORPORATE SUPPORT SERVICE","BT COMMUNICATIONS PLC",null,32.92,"BT Charges - October 2018 | 01244378109 | 01/10/2018 to 31/10/2018"]
["Department of Health","CWPFT",null,"TELEPHONE RENTAL AND CALL CHARGES","CORPORATE SUPPORT SERVICE","BT COMMUNICATIONS PLC",null,22.77,"BT Charges - October 2018 | 01244398556 | 01/10/2018 to 31/10/2018"]
["Department of Health","CWPFT",null,"TELEPHONE RENTAL AND CALL CHARGES","CORPORATE SUPPORT SERVICE","BT COMMUNICATIONS PLC",null,39.480000000000004,"BT Charges - October 2018 | 01244669950 | 01/10/2018 to 31/10/2018"]
["Department of Health","CWPFT",null,"TELEPHONE RENTAL AND CALL CHARGES","CORPORATE SUPPORT SERVICE","BT COMMUNICATIONS PLC",null,31.080000000000002,"BT Charges - October 2018 | 01270585952 | 01/10/2018 to 31/10/2018"]
["Department of Health","CWPFT",null,"TELEPHONE RENTAL AND CALL CHARGES","CORPORATE SUPPORT SERVICE","BT COMMUNICATIONS PLC",null,15.15,"BT Charges - October 2018 | 01513550401 | 01/10/2018 to 31/10/2018"]
["Department of Health","CWPFT",null,"TELEPHONE RENTAL AND CALL CHARGES","CORPORATE SUPPORT SERVICE","BT COMMUNICATIONS PLC",null,31.080000000000002,"BT Charges - October 2018 | 01513555817 | 01/10/2018 to 31/10/2018"]
["Department of Health","CWPFT",null,"TELEPHONE RENTAL AND CALL CHARGES","CORPORATE SUPPORT SERVICE","BT COMMUNICATIONS PLC",null,18.830000000000002,"BT Charges - October 2018 | 01513559135 | 01/10/2018 to 31/10/2018"]
["Department of Health","CWPFT",null,"TELEPHONE RENTAL AND CALL CHARGES","CORPORATE SUPPORT SERVICE","BT COMMUNICATIONS PLC",null,20,"BT Charges - October 2018 | 01513567813 | 01/10/2018 to 31/10/2018"]
["Department of Health","CWPFT",null,"TELEPHONE RENTAL AND CALL CHARGES","CORPORATE SUPPORT SERVICE","BT COMMUNICATIONS PLC",null,31.080000000000002,"BT Charges - October 2018 | 01513571960 | 01/10/2018 to 31/10/2018"]
["Department of Health","CWPFT",null,"TELEPHONE RENTAL AND CALL CHARGES","CORPORATE SUPPORT SERVICE","BT COMMUNICATIONS PLC",null,620.4,"BT Charges - October 2018 | 41003860 | 01/10/2018 to 31/10/2018"]
["Department of Health","CWPFT",null,"TELEPHONE RENTAL AND CALL CHARGES","CORPORATE SUPPORT SERVICE","BT COMMUNICATIONS PLC",null,30.3,"BT Charges - October 2018 | 01625890113 | 01/10/2018 to 31/10/2018"]
["Department of Health","CWPFT",null,"TELEPHONE RENTAL AND CALL CHARGES","CORPORATE SUPPORT SERVICE","BT COMMUNICATIONS PLC",null,15.15,"BT Charges - October 2018 | 01625861329 | 01/10/2018 to 31/10/2018"]
["Department of Health","CWPFT",null,"TELEPHONE RENTAL AND CALL CHARGES","CORPORATE SUPPORT SERVICE","BT COMMUNICATIONS PLC",null,15.15,"BT Charges - October 2018 | 01625668561 | 01/10/2018 to 31/10/2018"]
["Department of Health","CWPFT",null,"TELEPHONE RENTAL AND CALL CHARGES","CORPORATE SUPPORT SERVICE","BT COMMUNICATIONS PLC",null,31.080000000000002,"BT Charges - October 2018 | 01625616763 | 01/10/2018 to 31/10/2018"]
["Department of Health","CWPFT",null,"TELEPHONE RENTAL AND CALL CHARGES","CORPORATE SUPPORT SERVICE","BT COMMUNICATIONS PLC",null,15.16,"BT Charges - October 2018 | 01625439511 | 01/10/2018 to 31/10/2018"]
["Department of Health","CWPFT",null,"TELEPHONE RENTAL AND CALL CHARGES","CORPORATE SUPPORT SERVICE","BT COMMUNICATIONS PLC",null,31.080000000000002,"BT Charges - October 2018 | 01606551785 | 01/10/2018 to 31/10/2018"]
["Department of Health","CWPFT",null,"TELEPHONE RENTAL AND CALL CHARGES","CORPORATE SUPPORT SERVICE","BT COMMUNICATIONS PLC",null,17.16,"BT Charges - October 2018 | 01516388249 | 01/10/2018 to 31/10/2018"]
["Department of Health","CWPFT",null,"TELEPHONE RENTAL AND CALL CHARGES","CORPORATE SUPPORT SERVICE","BT COMMUNICATIONS PLC",null,4924.67,"BT Charges - October 2018 | 01514887240 | 01/10/2018 to 31/10/2018"]
["Department of Health","CWPFT",null,"TELEPHONE RENTAL AND CALL CHARGES","NEIGHBOURHOOD","BT COMMUNICATIONS PLC",null,15.22,"BT Charges - October 2018 | 01625614110 | 01/10/2018 to 31/10/2018"]
["Department of Health","CWPFT",null,"TELEPHONE RENTAL AND CALL CHARGES","NEIGHBOURHOOD","BT COMMUNICATIONS PLC",null,15.47,"BT Charges - October 2018 | 01625669204 | 01/10/2018 to 31/10/2018"]
["Department of Health","CWPFT",null,"TELEPHONE RENTAL AND CALL CHARGES","NEIGHBOURHOOD","BT COMMUNICATIONS PLC",null,17.82,"BT Charges - October 2018 | 01829734087 | 01/10/2018 to 31/10/2018"]
["Department of Health","CWPFT",null,"TELEPHONE RENTAL AND CALL CHARGES","CHILDREN, YOUNG PEOPLE & FAMILIES","BT COMMUNICATIONS PLC",null,15.16,"BT Charges - October 2018 | 01625427990 | 01/10/2018 to 31/10/2018"]
["Department of Health","CWPFT",null,"TELEPHONE RENTAL AND CALL CHARGES","CHILDREN, YOUNG PEOPLE & FAMILIES","BT COMMUNICATIONS PLC",null,15.18,"BT Charges - October 2018 | 01606592885 | 01/10/2018 to 31/10/2018"]
["Department of Health","CWPFT",null,"TELEPHONE RENTAL AND CALL CHARGES","CHILDREN, YOUNG PEOPLE & FAMILIES","BT COMMUNICATIONS PLC",null,15.26,"BT Charges - October 2018 | 01516709772 | 01/10/2018 to 31/10/2018"]
["Department of Health","CWPFT",null,"TELEPHONE RENTAL AND CALL CHARGES","CHILDREN, YOUNG PEOPLE & FAMILIES","BT COMMUNICATIONS PLC",null,15.16,"BT Charges - October 2018 | 01516538907 | 01/10/2018 to 31/10/2018"]
["Department of Health","CWPFT",null,"TELEPHONE RENTAL AND CALL CHARGES","OPERATIONAL MANAGEMENT","BT COMMUNICATIONS PLC",null,36,"BT Charges - October 2018 | 01244315637 | 01/10/2018 to 31/10/2018"]
["Department of Health","CWPFT",null,"TELEPHONE RENTAL AND CALL CHARGES","OPERATIONAL MANAGEMENT","BT COMMUNICATIONS PLC",null,35.020000000000003,"BT Charges - October 2018 | 01244315923 | 01/10/2018 to 31/10/2018"]
["Department of Health","CWPFT",null,"TELEPHONE RENTAL AND CALL CHARGES","OPERATIONAL MANAGEMENT","BT COMMUNICATIONS PLC",null,-9.84,"BT Charges - October 2018 | 01244316048 | 01/09/2018 to 30/09/2018"]
["Department of Health","CWPFT",null,"TELEPHONE RENTAL AND CALL CHARGES","OPERATIONAL MANAGEMENT","BT COMMUNICATIONS PLC",null,207.31,"BT Charges - October 2018 | 01244340631 | 01/10/2018 to 31/10/2018"]
["Department of Health","CWPFT",null,"TELEPHONE RENTAL AND CALL CHARGES","OPERATIONAL MANAGEMENT","BT COMMUNICATIONS PLC",null,25.900000000000002,"BT Charges - October 2018 | 01244341327 | 01/10/2018 to 31/10/2018"]
["Department of Health","CWPFT",null,"TELEPHONE RENTAL AND CALL CHARGES","OPERATIONAL MANAGEMENT","BT COMMUNICATIONS PLC",null,37.49,"BT Charges - October 2018 | 01244344658 | 01/10/2018 to 31/10/2018"]
["Department of Health","CWPFT",null,"TELEPHONE RENTAL AND CALL CHARGES","OPERATIONAL MANAGEMENT","BT COMMUNICATIONS PLC",null,34.71,"BT Charges - October 2018 | 01244346458 | 01/10/2018 to 31/10/2018"]
["Department of Health","CWPFT",null,"TELEPHONE RENTAL AND CALL CHARGES","OPERATIONAL MANAGEMENT","BT COMMUNICATIONS PLC",null,69.31,"BT Charges - October 2018 | 01244348022 | 01/10/2018 to 31/10/2018"]
["Department of Health","CWPFT",null,"TELEPHONE RENTAL AND CALL CHARGES","OPERATIONAL MANAGEMENT","BT COMMUNICATIONS PLC",null,31.080000000000002,"BT Charges - October 2018 | 01244375295 | 01/10/2018 to 31/10/2018"]
["Department of Health","CWPFT",null,"TELEPHONE RENTAL AND CALL CHARGES","OPERATIONAL MANAGEMENT","BT COMMUNICATIONS PLC",null,20.080000000000002,"BT Charges - October 2018 | 01244398010 | 01/10/2018 to 31/10/2018"]
["Department of Health","CWPFT",null,"TELEPHONE RENTAL AND CALL CHARGES","OPERATIONAL MANAGEMENT","BT COMMUNICATIONS PLC",null,331.47,"BT Charges - October 2018 | 01244401075 | 01/10/2018 to 31/10/2018"]
["Department of Health","CWPFT",null,"TELEPHONE RENTAL AND CALL CHARGES","NEIGHBOURHOOD","BT COMMUNICATIONS PLC",null,15.16,"BT Charges - October 2018 | 01625511639 | 01/10/2018 to 31/10/2018"]
["Department of Health","CWPFT",null,"TELEPHONE RENTAL AND CALL CHARGES","NEIGHBOURHOOD","BT COMMUNICATIONS PLC",null,17.440000000000001,"BT Charges - October 2018 | 01519225729 | 01/10/2018 to 31/10/2018"]
["Department of Health","CWPFT",null,"TELEPHONE RENTAL AND CALL CHARGES","NEIGHBOURHOOD","BT COMMUNICATIONS PLC",null,223.62,"BT Charges - October 2018 | 01513559545 | 01/10/2018 to 31/10/2018"]
["Department of Health","CWPFT",null,"TELEPHONE RENTAL AND CALL CHARGES","NEIGHBOURHOOD","BT COMMUNICATIONS PLC",null,15.58,"BT Charges - October 2018 | 01270588574 | 01/10/2018 to 31/10/2018"]
["Department of Health","CWPFT",null,"TELEPHONE RENTAL AND CALL CHARGES","NEIGHBOURHOOD","BT COMMUNICATIONS PLC",null,15.280000000000001,"BT Charges - October 2018 | 01270216419 | 01/10/2018 to 31/10/2018"]
["Department of Health","CWPFT",null,"TELEPHONE RENTAL AND CALL CHARGES","NEIGHBOURHOOD","BT COMMUNICATIONS PLC",null,31.080000000000002,"BT Charges - October 2018 | 01244390399 | 01/10/2018 to 31/10/2018"]
["Department of Health","CWPFT","2018-09-28","INSURANCE","TRUST WIDE","GMP DRIVERCARE LTD",5145452,147594.71,"CWPP220a, Motor Insurance Renewal 01/10/2018 - 01/04/2020 INSURANCE COMPANY - AXA 163 Vehicles @ £602.01 per Vehicle per annum inclusive of IPT. £602.01 / 365 x 549 Days x 163"]
["Department of Health","CWPFT",null,"INSURANCE","TRUST WIDE","GMP DRIVERCARE LTD",null,758.07,"Motor Insurance Renewal 01/10/2018 - 01/04/2020 INSURANCE COMPANY - AXA 6 Specialist Type Vehicles @ £84.00 per Vehicle per annum inclusive of IPT. £84.00 / 365 x 549 Days x 6"]
["Department of Health","CWPFT","2018-10-04","BUILDING CONTRACTS","SPECIALIST MENTAL HEALTH","WHITFIELD & BROWN (DEVELOPMENTS) LTD",5145459,91798.080000000002,"8 BED EXTENSION TO BOWMERE HOSPITAL AS PER YOUR SUCCESSFUL TENDER (DELTA REF. CWP014)"]
["Department of Health","CWPFT","2018-08-31","CONTRACT : OTHER EXTERNAL","CORPORATE SUPPORT SERVICE","LLOYDS PHARMACY LTD",5145520,30700.9,"Pharmacy Goods & Services Supplied - August 2018"]
["Department of Health","CWPFT",null,"DRUGS","LEARNING DISABILITIES & NEURO SERVICES","LLOYDS PHARMACY LTD",null,2055.5100000000002,"Pharmacy Goods & Services Supplied - August 2018"]
["Department of Health","CWPFT",null,"DRUGS","SPECIALIST MENTAL HEALTH","LLOYDS PHARMACY LTD",null,138689.84,"Pharmacy Goods & Services Supplied - August 2018"]
["Department of Health","CWPFT",null,"DRUGS","CHILDREN, YOUNG PEOPLE & FAMILIES","LLOYDS PHARMACY LTD",null,2859.7000000000003,"Pharmacy Goods & Services Supplied - August 2018"]
["Department of Health","CWPFT",null,"DRUGS","JOINT THERAPIES","LLOYDS PHARMACY LTD",null,10.26,"Pharmacy Goods & Services Supplied - August 2018"]
["Department of Health","CWPFT",null,"DRUGS","NEIGHBOURHOOD","LLOYDS PHARMACY LTD",null,3456.37,"Pharmacy Goods & Services Supplied - August 2018"]
["Department of Health","CWPFT",null,"DRUGS","CORPORATE SUPPORT SERVICE","LLOYDS PHARMACY LTD",null,688.56000000000006,"Pharmacy Goods & Services Supplied - August 2018"]
["Department of Health","CWPFT","2018-09-30","CONTRACT : OTHER EXTERNAL","CORPORATE SUPPORT SERVICE","LLOYDS PHARMACY LTD",5145521,30583.420000000002,"Pharmacy Goods & Services Supplied - September 2018"]
["Department of Health","CWPFT",null,"DRUGS","CORPORATE SUPPORT SERVICE","LLOYDS PHARMACY LTD",null,1929.78,"Pharmacy Goods & Services Supplied - September 2018"]
["Department of Health","CWPFT",null,"DRUGS","CHILDREN, YOUNG PEOPLE & FAMILIES","LLOYDS PHARMACY LTD",null,1117.04,"Pharmacy Goods & Services Supplied - September 2018"]
["Department of Health","CWPFT",null,"DRUGS","JOINT THERAPIES","LLOYDS PHARMACY LTD",null,100.12,"Pharmacy Goods & Services Supplied - September 2018"]
["Department of Health","CWPFT",null,"DRUGS","NEIGHBOURHOOD","LLOYDS PHARMACY LTD",null,2987.32,"Pharmacy Goods & Services Supplied - September 2018"]
["Department of Health","CWPFT",null,"DRUGS","LEARNING DISABILITIES & NEURO SERVICES","LLOYDS PHARMACY LTD",null,1722.33,"Pharmacy Goods & Services Supplied - September 2018"]
["Department of Health","CWPFT",null,"DRUGS","SPECIALIST MENTAL HEALTH","LLOYDS PHARMACY LTD",null,122463.44,"Pharmacy Goods & Services Supplied - September 2018"]
["Department of Health","CWPFT","2018-10-17","ELECTRICITY","CORPORATE SUPPORT SERVICE","WIRRAL UNIVERSITY TEACHING HOSPITAL NHS FOUNDATION TRUST",5145660,29463.93,"DRA-APR-JUL.18-ENERGY CHARGES"]
["Department of Health","CWPFT",null,"GAS","CORPORATE SUPPORT SERVICE","WIRRAL UNIVERSITY TEACHING HOSPITAL NHS FOUNDATION TRUST",null,6763.07,"DRA-APR-JUL.18-ENERGY CHARGES"]
["Department of Health","CWPFT",null,"WATER","CORPORATE SUPPORT SERVICE","WIRRAL UNIVERSITY TEACHING HOSPITAL NHS FOUNDATION TRUST",null,7364.97,"DRA-APR-JUL.18-ENERGY CHARGES"]
["Department of Health","CWPFT","2018-10-12","CNST CONTRIBUTIONS","CORPORATE SUPPORT SERVICE","NHS LITIGATION AUTHORITY",5145703,50608.700000000004,"DRA-GROSS CONTRIBUTION"]

{"sheet":"Macro1","index":1,"n_rows":299,"n_cols":2,"rows_kept":299,"cut":false,"hidden":true,"merged":[]}
["Macro1","Auto_Open"]
[{"$f":"ALIGNMENT(2,FALSE,1,0,FALSE)","v":true},{"$f":"ERROR(2,Recover)","v":true}]
[{"$f":"BORDER(0,1,1,1,1,0,0,1,1,1,1)","v":true},{"$f":"WORKBOOK.SELECT(\">25k report\")","v":true}]
[{"$f":"PATTERNS(1,0,2,TRUE)","v":true},{"$f":"WINDOW.RESTORE()","v":true}]
[{"$f":"FORMAT.FONT(\"Century Gothic\",8,FALSE,FALSE,FALSE,FALSE,1,FALSE,FALSE)","v":true},{"$f":"WINDOW.SIZE(82.5,42.75)","v":true}]
[{"$f":"RETURN()","v":true},{"$f":"WORKBOOK.HIDE(\"Macro1\",TRUE)","v":true}]
[null,{"$f":"EDIT.COLOR(1,0,0,0)","v":true}]
["Macro10",{"$f":"EDIT.COLOR(3,255,0,0)","v":true}]
[{"$f":"ALIGNMENT(2,FALSE,1,0,FALSE)","v":true},{"$f":"EDIT.COLOR(4,212,212,212)","v":true}]
[{"$f":"BORDER(1,1,1,0,0,0,1,1,1,0,0)","v":true},{"$f":"EDIT.COLOR(2,255,255,255)","v":true}]
[{"$f":"PATTERNS(1,0,2,TRUE)","v":true},{"$f":"RUN(\"Macro33\")","v":{"$error":"#N/A"}}]
[{"$f":"FORMAT.FONT(\"Century Gothic\",8,FALSE,FALSE,FALSE,FALSE,1,FALSE,FALSE)","v":true},{"$f":"DELETE.NAME(\"Auto_Open\")","v":true}]
[{"$f":"RETURN()","v":true},{"$f":"WORKBOOK.SELECT(\">25k report\")","v":true}]
[null,{"$f":"SELECT(\"R1:R65536\")","v":true}]
["Macro11",{"$f":"COLUMN.WIDTH(,,,3)","v":true}]
[{"$f":"ALIGNMENT(3,FALSE,1,0,FALSE)","v":true},{"$f":"ROW.HEIGHT(,,,3)","v":true}]
[{"$f":"BORDER(1,1,1,0,0,0,1,1,1,0,0)","v":true},{"$f":"SELECT(\"R1C1\")","v":true}]
[{"$f":"PATTERNS(1,0,2,TRUE)","v":true},{"$f":"WINDOW.MAXIMIZE()","v":true}]
[{"$f":"FORMAT.FONT(\"Century Gothic\",8,FALSE,FALSE,FALSE,FALSE,1,FALSE,FALSE)","v":true},{"$f":"RETURN()","v":true}]
[{"$f":"RETURN()","v":true}]
[]
["Macro12"]
[{"$f":"ALIGNMENT(2,FALSE,1,0,FALSE)","v":true}]
[{"$f":"BORDER(1,1,1,0,0,0,1,1,1,0,0)","v":true}]
[{"$f":"PATTERNS(1,0,2,TRUE)","v":true}]
[{"$f":"FORMAT.FONT(\"Century Gothic\",8,FALSE,FALSE,FALSE,FALSE,1,FALSE,FALSE)","v":true}]
[{"$f":"RETURN()","v":true}]
[]
["Macro13"]
[{"$f":"ALIGNMENT(3,FALSE,1,0,FALSE)","v":true}]
[{"$f":"BORDER(1,1,1,0,0,0,1,1,1,0,0)","v":true}]
[{"$f":"PATTERNS(1,0,2,TRUE)","v":true}]
[{"$f":"FORMAT.FONT(\"Century Gothic\",8,FALSE,FALSE,FALSE,FALSE,1,FALSE,FALSE)","v":true}]
[{"$f":"RETURN()","v":true}]
[]
["Macro14"]
[{"$f":"ALIGNMENT(2,FALSE,1,0,FALSE)","v":true}]
[{"$f":"BORDER(1,1,1,0,0,0,1,1,1,0,0)","v":true}]
[{"$f":"PATTERNS(1,0,2,TRUE)","v":true}]
[{"$f":"FORMAT.FONT(\"Century Gothic\",8,FALSE,FALSE,FALSE,FALSE,1,FALSE,FALSE)","v":true}]
[{"$f":"RETURN()","v":true}]
[]
["Macro15"]
[{"$f":"ALIGNMENT(3,FALSE,1,0,FALSE)","v":true}]
[{"$f":"BORDER(1,1,1,0,0,0,1,1,1,0,0)","v":true}]
[{"$f":"PATTERNS(1,0,2,TRUE)","v":true}]
[{"$f":"FORMAT.FONT(\"Century Gothic\",8,FALSE,FALSE,FALSE,FALSE,1,FALSE,FALSE)","v":true}]
[{"$f":"RETURN()","v":true}]
[]
["Macro16"]
[{"$f":"ALIGNMENT(2,FALSE,1,0,FALSE)","v":true}]
[{"$f":"BORDER(1,1,1,0,0,0,1,1,1,0,0)","v":true}]
[{"$f":"PATTERNS(1,0,2,TRUE)","v":true}]
[{"$f":"FORMAT.FONT(\"Century Gothic\",8,FALSE,FALSE,FALSE,FALSE,1,FALSE,FALSE)","v":true}]
[{"$f":"RETURN()","v":true}]
[]
["Macro17"]
[{"$f":"ALIGNMENT(3,FALSE,1,0,FALSE)","v":true}]
[{"$f":"BORDER(1,1,1,0,0,0,1,1,1,0,0)","v":true}]
[{"$f":"PATTERNS(1,0,2,TRUE)","v":true}]
[{"$f":"FORMAT.FONT(\"Century Gothic\",8,FALSE,FALSE,FALSE,FALSE,1,FALSE,FALSE)","v":true}]
[{"$f":"RETURN()","v":true}]
[]
["Macro18"]
[{"$f":"ALIGNMENT(2,FALSE,1,0,FALSE)","v":true}]
[{"$f":"BORDER(1,1,1,0,0,0,1,1,1,0,0)","v":true}]
[{"$f":"PATTERNS(1,0,2,TRUE)","v":true}]
[{"$f":"FORMAT.FONT(\"Century Gothic\",8,FALSE,FALSE,FALSE,FALSE,1,FALSE,FALSE)","v":true}]
[{"$f":"RETURN()","v":true}]
[]
["Macro19"]
[{"$f":"ALIGNMENT(3,FALSE,1,0,FALSE)","v":true}]
[{"$f":"BORDER(1,1,1,0,0,0,1,1,1,0,0)","v":true}]
[{"$f":"PATTERNS(1,0,2,TRUE)","v":true}]
[{"$f":"FORMAT.FONT(\"Century Gothic\",8,FALSE,FALSE,FALSE,FALSE,1,FALSE,FALSE)","v":true}]
[{"$f":"RETURN()","v":true}]
[]
["Macro2"]
[{"$f":"ALIGNMENT(3,FALSE,1,0,FALSE)","v":true}]
[{"$f":"BORDER(0,1,1,1,1,0,0,1,1,1,1)","v":true}]
[{"$f":"PATTERNS(1,0,2,TRUE)","v":true}]
[{"$f":"FORMAT.FONT(\"Century Gothic\",8,FALSE,FALSE,FALSE,FALSE,1,FALSE,FALSE)","v":true}]
[{"$f":"RETURN()","v":true}]
[]
["Macro20"]
[{"$f":"ALIGNMENT(2,FALSE,1,0,FALSE)","v":true}]
[{"$f":"BORDER(1,1,1,0,0,0,1,1,1,0,0)","v":true}]
[{"$f":"PATTERNS(1,0,2,TRUE)","v":true}]
[{"$f":"FORMAT.FONT(\"Century Gothic\",8,FALSE,FALSE,FALSE,FALSE,1,FALSE,FALSE)","v":true}]
[{"$f":"RETURN()","v":true}]
[]
["Macro21"]
[{"$f":"ALIGNMENT(3,FALSE,1,0,FALSE)","v":true}]
[{"$f":"BORDER(1,1,1,0,0,0,1,1,1,0,0)","v":true}]
[{"$f":"PATTERNS(1,0,2,TRUE)","v":true}]
[{"$f":"FORMAT.FONT(\"Century Gothic\",8,FALSE,FALSE,FALSE,FALSE,1,FALSE,FALSE)","v":true}]
[{"$f":"RETURN()","v":true}]
[]
["Macro22"]
[{"$f":"ALIGNMENT(4,FALSE,1,0,FALSE)","v":true}]
[{"$f":"BORDER(0,1,1,1,1,0,0,1,1,1,1)","v":true}]
[{"$f":"PATTERNS(1,0,2,TRUE)","v":true}]
[{"$f":"FORMAT.FONT(\"Century Gothic\",8,TRUE,FALSE,FALSE,FALSE,1,FALSE,FALSE)","v":true}]
[{"$f":"RETURN()","v":true}]
[]
["Macro23"]
[{"$f":"ALIGNMENT(2,FALSE,1,0,FALSE)","v":true}]
[{"$f":"BORDER(0,1,1,1,1,0,0,1,1,1,1)","v":true}]
[{"$f":"PATTERNS(1,0,2,TRUE)","v":true}]
[{"$f":"FORMAT.FONT(\"Century Gothic\",8,TRUE,FALSE,FALSE,FALSE,1,FALSE,FALSE)","v":true}]
[{"$f":"RETURN()","v":true}]
[]
["Macro24"]
[{"$f":"ALIGNMENT(3,TRUE,2,0,FALSE)","v":true}]
[{"$f":"BORDER(0,1,1,1,1,0,0,1,1,1,1)","v":true}]
[{"$f":"PATTERNS(1,0,2,TRUE)","v":true}]
[{"$f":"FORMAT.FONT(\"Century Gothic\",8,TRUE,FALSE,FALSE,FALSE,1,FALSE,FALSE)","v":true}]
[{"$f":"RETURN()","v":true}]
[]
["Macro25"]
[{"$f":"ALIGNMENT(3,TRUE,2,0,FALSE)","v":true}]
[{"$f":"BORDER(0,1,1,1,1,0,0,1,1,1,1)","v":true}]
[{"$f":"PATTERNS(1,0,2,TRUE)","v":true}]
[{"$f":"FORMAT.FONT(\"Century Gothic\",8,TRUE,FALSE,FALSE,FALSE,1,FALSE,FALSE)","v":true}]
[{"$f":"RETURN()","v":true}]
[]
["Macro26"]
[{"$f":"ALIGNMENT(2,FALSE,1,0,FALSE)","v":true}]
[{"$f":"BORDER(0,1,1,1,1,0,0,1,1,1,1)","v":true}]
[{"$f":"PATTERNS(1,0,2,TRUE)","v":true}]
[{"$f":"FORMAT.FONT(\"Century Gothic\",8,TRUE,FALSE,FALSE,FALSE,1,FALSE,FALSE)","v":true}]
[{"$f":"RETURN()","v":true}]
[]
["Macro27"]
[{"$f":"ALIGNMENT(3,TRUE,2,0,FALSE)","v":true}]
[{"$f":"BORDER(0,1,1,1,1,0,0,1,1,1,1)","v":true}]
[{"$f":"PATTERNS(1,0,2,TRUE)","v":true}]
[{"$f":"FORMAT.FONT(\"Century Gothic\",8,TRUE,FALSE,FALSE,FALSE,1,FALSE,FALSE)","v":true}]
[{"$f":"RETURN()","v":true}]
[]
["Macro28"]
[{"$f":"ALIGNMENT(3,TRUE,2,0,FALSE)","v":true}]
[{"$f":"BORDER(0,1,1,1,1,0,0,1,1,1,1)","v":true}]
[{"$f":"PATTERNS(1,0,2,TRUE)","v":true}]
[{"$f":"FORMAT.FONT(\"Century Gothic\",8,TRUE,FALSE,FALSE,FALSE,1,FALSE,FALSE)","v":true}]
[{"$f":"RETURN()","v":true}]
[]
["Macro29"]
[{"$f":"ALIGNMENT(3,TRUE,2,0,FALSE)","v":true}]
[{"$f":"BORDER(0,1,1,1,1,0,0,1,1,1,1)","v":true}]
[{"$f":"PATTERNS(1,0,2,TRUE)","v":true}]
[{"$f":"FORMAT.FONT(\"Century Gothic\",8,TRUE,FALSE,FALSE,FALSE,1,FALSE,FALSE)","v":true}]
[{"$f":"RETURN()","v":true}]
[]
["Macro3"]
[{"$f":"ALIGNMENT(4,FALSE,1,0,FALSE)","v":true}]
[{"$f":"BORDER(0,1,1,1,1,0,0,1,1,1,1)","v":true}]
[{"$f":"PATTERNS(1,0,2,TRUE)","v":true}]
[{"$f":"FORMAT.FONT(\"Century Gothic\",8,FALSE,FALSE,FALSE,FALSE,1,FALSE,FALSE)","v":true}]
[{"$f":"RETURN()","v":true}]
[]
["Macro30"]
[{"$f":"ALIGNMENT(2,FALSE,1,0,FALSE)","v":true}]
[{"$f":"BORDER(0,1,1,1,1,0,0,1,1,1,1)","v":true}]
[{"$f":"PATTERNS(1,0,2,TRUE)","v":true}]
[{"$f":"FORMAT.FONT(\"Century Gothic\",8,TRUE,FALSE,FALSE,FALSE,1,FALSE,FALSE)","v":true}]
[{"$f":"RETURN()","v":true}]
[]
["Macro31"]
[{"$f":"ALIGNMENT(2,FALSE,1,0,FALSE)","v":true}]
[{"$f":"PATTERNS(1,0,3,TRUE)","v":true}]
[{"$f":"FORMAT.FONT(\"Arial\",8,FALSE,FALSE,FALSE,FALSE,1,FALSE,FALSE)","v":true}]
[{"$f":"RETURN()","v":true}]
[]
["Macro32"]
[{"$f":"ALIGNMENT(2,FALSE,1,0,FALSE)","v":true}]
[{"$f":"PATTERNS(1,0,3,TRUE)","v":true}]
[{"$f":"FORMAT.FONT(\"Arial\",8,FALSE,FALSE,FALSE,FALSE,1,FALSE,FALSE)","v":true}]
[{"$f":"RETURN()","v":true}]
[]
["Macro33"]
[{"$f":"WORKBOOK.SELECT(\">25k report\")","v":true}]
[{"$f":"SELECT(\"R4C1:R182C6,R4C9:R182C9\")","v":true}]
[{"$f":"RUN(\"Macro1\")","v":{"$error":"#N/A"}}]
[{"$f":"SELECT(\"R4C7:R182C7\")","v":true}]
[{"$f":"RUN(\"Macro2\")","v":{"$error":"#N/A"}}]
[{"$f":"SELECT(\"R4C8:R182C8\")","v":true}]
[{"$f":"RUN(\"Macro3\")","v":{"$error":"#N/A"}}]
[{"$f":"SELECT(\"R7C3:R19C3\")","v":true}]
[{"$f":"RUN(\"Macro4\")","v":{"$error":"#N/A"}}]
[{"$f":"SELECT(\"R7C7:R19C7\")","v":true}]
[{"$f":"RUN(\"Macro5\")","v":{"$error":"#N/A"}}]
[{"$f":"SELECT(\"R21C3:R23C3\")","v":true}]
[{"$f":"RUN(\"Macro6\")","v":{"$error":"#N/A"}}]
[{"$f":"SELECT(\"R21C7:R23C7\")","v":true}]
[{"$f":"RUN(\"Macro7\")","v":{"$error":"#N/A"}}]
[{"$f":"SELECT(\"R25C3:R26C3\")","v":true}]
[{"$f":"RUN(\"Macro8\")","v":{"$error":"#N/A"}}]
[{"$f":"SELECT(\"R25C7:R26C7\")","v":true}]
[{"$f":"RUN(\"Macro9\")","v":{"$error":"#N/A"}}]
[{"$f":"SELECT(\"R30C3:R31C3\")","v":true}]
[{"$f":"RUN(\"Macro10\")","v":{"$error":"#N/A"}}]
[{"$f":"SELECT(\"R30C7:R31C7\")","v":true}]
[{"$f":"RUN(\"Macro11\")","v":{"$error":"#N/A"}}]
[{"$f":"SELECT(\"R32C3:R161C3\")","v":true}]
[{"$f":"RUN(\"Macro12\")","v":{"$error":"#N/A"}}]
[{"$f":"SELECT(\"R32C7:R161C7\")","v":true}]
[{"$f":"RUN(\"Macro13\")","v":{"$error":"#N/A"}}]
[{"$f":"SELECT(\"R162C3:R163C3\")","v":true}]
[{"$f":"RUN(\"Macro14\")","v":{"$error":"#N/A"}}]
[{"$f":"SELECT(\"R162C7:R163C7\")","v":true}]
[{"$f":"RUN(\"Macro15\")","v":{"$error":"#N/A"}}]
[{"$f":"SELECT(\"R165C3:R171C3\")","v":true}]
[{"$f":"RUN(\"Macro16\")","v":{"$error":"#N/A"}}]
[{"$f":"SELECT(\"R165C7:R171C7\")","v":true}]
[{"$f":"RUN(\"Macro17\")","v":{"$error":"#N/A"}}]
[{"$f":"SELECT(\"R172C3:R178C3\")","v":true}]
[{"$f":"RUN(\"Macro18\")","v":{"$error":"#N/A"}}]
[{"$f":"SELECT(\"R172C7:R178C7\")","v":true}]
[{"$f":"RUN(\"Macro19\")","v":{"$error":"#N/A"}}]
[{"$f":"SELECT(\"R179C3:R181C3\")","v":true}]
[{"$f":"RUN(\"Macro20\")","v":{"$error":"#N/A"}}]
[{"$f":"SELECT(\"R179C7:R181C7\")","v":true}]
[{"$f":"RUN(\"Macro21\")","v":{"$error":"#N/A"}}]
[{"$f":"SELECT(\"R4C7:R182C7\")","v":true}]
[{"$f":"FORMAT.NUMBER(\"##########0\")","v":true}]
[{"$f":"SELECT(\"R4C8:R182C8\")","v":true}]
[{"$f":"FORMAT.NUMBER(\"#########0.00\")","v":true}]
[{"$f":"SELECT(\"R4C3:R182C3\")","v":true}]
[{"$f":"FORMAT.NUMBER(\"dd/mm/yyyy\")","v":true}]
[{"$f":"SELECT(\"R1C1\")","v":true}]
[{"$f":"RUN(\"Macro22\")","v":{"$error":"#N/A"}}]
[{"$f":"SELECT(\"R1C2\")","v":true}]
[{"$f":"RUN(\"Macro23\")","v":{"$error":"#N/A"}}]
[{"$f":"SELECT(\"R3C1:R3C3\")","v":true}]
[{"$f":"RUN(\"Macro24\")","v":{"$error":"#N/A"}}]
[{"$f":"SELECT(\"R3C4\")","v":true}]
[{"$f":"RUN(\"Macro25\")","v":{"$error":"#N/A"}}]
[{"$f":"SELECT(\"R3C5\")","v":true}]
[{"$f":"RUN(\"Macro26\")","v":{"$error":"#N/A"}}]
[{"$f":"SELECT(\"R3C6\")","v":true}]
[{"$f":"RUN(\"Macro27\")","v":{"$error":"#N/A"}}]
[{"$f":"SELECT(\"R3C7\")","v":true}]
[{"$f":"RUN(\"Macro28\")","v":{"$error":"#N/A"}}]
[{"$f":"SELECT(\"R3C8\")","v":true}]
[{"$f":"RUN(\"Macro29\")","v":{"$error":"#N/A"}}]
[{"$f":"SELECT(\"R3C9\")","v":true}]
[{"$f":"RUN(\"Macro30\")","v":{"$error":"#N/A"}}]
[{"$f":"SELECT(\"R4C4,R162C4:R164C4\")","v":true}]
[{"$f":"RUN(\"Macro31\")","v":{"$error":"#N/A"}}]
[{"$f":"SELECT(\"R4C5,R162C5:R164C5\")","v":true}]
[{"$f":"RUN(\"Macro32\")","v":{"$error":"#N/A"}}]
[{"$f":"RETURN()","v":true}]
[]
["Macro4"]
[{"$f":"ALIGNMENT(2,FALSE,1,0,FALSE)","v":true}]
[{"$f":"BORDER(1,1,1,0,0,0,1,1,1,0,0)","v":true}]
[{"$f":"PATTERNS(1,0,2,TRUE)","v":true}]
[{"$f":"FORMAT.FONT(\"Century Gothic\",8,FALSE,FALSE,FALSE,FALSE,1,FALSE,FALSE)","v":true}]
[{"$f":"RETURN()","v":true}]
[]
["Macro5"]
[{"$f":"ALIGNMENT(3,FALSE,1,0,FALSE)","v":true}]
[{"$f":"BORDER(1,1,1,0,0,0,1,1,1,0,0)","v":true}]
[{"$f":"PATTERNS(1,0,2,TRUE)","v":true}]
[{"$f":"FORMAT.FONT(\"Century Gothic\",8,FALSE,FALSE,FALSE,FALSE,1,FALSE,FALSE)","v":true}]
[{"$f":"RETURN()","v":true}]
[]
["Macro6"]
[{"$f":"ALIGNMENT(2,FALSE,1,0,FALSE)","v":true}]
[{"$f":"BORDER(1,1,1,0,0,0,1,1,1,0,0)","v":true}]
[{"$f":"PATTERNS(1,0,2,TRUE)","v":true}]
[{"$f":"FORMAT.FONT(\"Century Gothic\",8,FALSE,FALSE,FALSE,FALSE,1,FALSE,FALSE)","v":true}]
[{"$f":"RETURN()","v":true}]
[]
["Macro7"]
[{"$f":"ALIGNMENT(3,FALSE,1,0,FALSE)","v":true}]
[{"$f":"BORDER(1,1,1,0,0,0,1,1,1,0,0)","v":true}]
[{"$f":"PATTERNS(1,0,2,TRUE)","v":true}]
[{"$f":"FORMAT.FONT(\"Century Gothic\",8,FALSE,FALSE,FALSE,FALSE,1,FALSE,FALSE)","v":true}]
[{"$f":"RETURN()","v":true}]
[]
["Macro8"]
[{"$f":"ALIGNMENT(2,FALSE,1,0,FALSE)","v":true}]
[{"$f":"BORDER(1,1,1,0,0,0,1,1,1,0,0)","v":true}]
[{"$f":"PATTERNS(1,0,2,TRUE)","v":true}]
[{"$f":"FORMAT.FONT(\"Century Gothic\",8,FALSE,FALSE,FALSE,FALSE,1,FALSE,FALSE)","v":true}]
[{"$f":"RETURN()","v":true}]
[]
["Macro9"]
[{"$f":"ALIGNMENT(3,FALSE,1,0,FALSE)","v":true}]
[{"$f":"BORDER(1,1,1,0,0,0,1,1,1,0,0)","v":true}]
[{"$f":"PATTERNS(1,0,2,TRUE)","v":true}]
[{"$f":"FORMAT.FONT(\"Century Gothic\",8,FALSE,FALSE,FALSE,FALSE,1,FALSE,FALSE)","v":true}]
[{"$f":"RETURN()","v":true}]
[]
["Recover"]
[{"$f":"GOTO(OFFSET(LAST.ERROR(),1,0))","v":false}]
[{"$f":"RETURN()","v":true}]